fUST/lending_fUST_20241109
["ID","MTS","AMOUNT","RATE_DAILY","PERIOD"]
[341679968,1731088250036,-318.23378137,0.00026368,2]
[341679969,1731088250045,-502.35358066,0.00026368,2]
[341679970,1731088250055,-500.6839231,0.00026368,2]
[341679971,1731088250065,-500.0,0.00026368,2]
[341679972,1731088250074,-500.0,0.00026368,2]
[341679973,1731088250083,-500.0,0.00026389,2]
[341679974,1731088250092,-465.8915954,0.00026511,2]
[341679975,1731088250101,-587.0,0.00026518,2]
[341679976,1731088250110,-170.32692222,0.00026562,2]
[341679977,1731088250119,-161.769991,0.00026575,7]
[341679978,1731088250129,-151.0,0.00026575,7]
[341679979,1731088250138,-596.23,0.00026575,2]
[341679980,1731088250147,-402.942083,0.00026575,7]
[341679981,1731088250156,-151.0,0.00026575,7]
[341679982,1731088250165,-151.0,0.00026575,7]
[341679983,1731088250173,-151.0,0.00026575,7]
[341679984,1731088250183,-159.726175,0.00026575,7]
[341679985,1731088250192,-159.726175,0.00026575,7]
[341679986,1731088250202,-515.035298,0.00026575,7]
[341679987,1731088250211,-151.0,0.00026575,7]
[341679988,1731088250221,-515.035298,0.00026575,7]
[341679989,1731088250234,-500.0,0.00026575,2]
[341679990,1731088250244,-4040.74,0.00026575,2]
[341679991,1731088250253,-782.26,0.00026575,2]
[341679992,1731088250263,-665.6,0.00026575,2]
[341679993,1731088250274,-663.22,0.00026575,2]
[341679994,1731088250284,-5917.24,0.00026575,2]
[341679995,1731088250293,-151.0,0.00026575,7]
[341679996,1731088250303,-151.0,0.00026575,7]
[341679997,1731088250312,-151.0,0.00026575,7]
[341679998,1731088250322,-2301.4,0.00026575,2]
[341679999,1731088250331,-500.0,0.00026575,2]
[341680000,1731088250340,-471.09647,0.00026575,7]
[341680001,1731088250349,-471.09647,0.00026575,7]
[341680002,1731088250359,-500.0,0.00026575,2]
[341680003,1731088250369,-1550.49691072,0.00026799,2]
[341680004,1731088250378,-596.23,0.00026849,2]
[341680005,1731088250388,-151.0,0.00026849,7]
[341680006,1731088250398,-151.0,0.00026849,7]
[341680007,1731088250407,-301.110931,0.00026849,7]
[341680008,1731088250416,-394.313854,0.00026849,7]
[341680009,1731088250426,-394.313854,0.00026849,7]
[341680010,1731088250435,-274.229618,0.00026849,7]
[341680011,1731088250444,-274.229618,0.00026849,7]
[341680012,1731088250453,-151.0,0.00026849,7]
[341680013,1731088250463,-500.0,0.00026849,2]
[341680014,1731088250474,-4040.74,0.00026849,2]
[341680015,1731088250483,-782.26,0.00026849,2]
[341680016,1731088250493,-665.6,0.00026849,2]
[341680017,1731088250502,-663.22,0.00026849,2]
[341680018,1731088250512,-5917.24,0.00026849,2]
[341680019,1731088250522,-600.0,0.00026849,2]
[341680020,1731088250531,-2301.4,0.00026849,2]
[341680021,1731088250541,-500.0,0.00026849,2]
[341680022,1731088250550,-500.0,0.00026849,2]
[341680023,1731088250559,-151.0,0.00027,7]
[341680024,1731088250569,-1513.26945354,0.00027023,2]
[341680025,1731088250578,-1500.0,0.00027023,2]
[341680026,1731088250588,-500.0,0.00027023,2]
[341680027,1731088250598,-1500.0,0.00027023,2]
[341680028,1731088250607,-596.23,0.00027123,2]
[341680029,1731088250617,-186.909413,0.00027123,7]
[341680030,1731088250626,-186.909413,0.00027123,7]
[341680031,1731088250635,-500.0,0.00027123,2]
[341680032,1731088250645,-4040.74,0.00027123,2]
[341680033,1731088250656,-782.26,0.00027123,2]
[341680034,1731088250665,-265.879557,0.00027123,7]
[341680035,1731088250675,-265.879557,0.00027123,7]
[341680036,1731088250684,-665.6,0.00027123,2]
[341680037,1731088250694,-151.0,0.00027123,7]
[341680038,1731088250703,-663.22,0.00027123,2]
[341680039,1731088250712,-5917.24,0.00027123,2]
[341680040,1731088250724,-151.0,0.00027123,7]
[341680041,1731088250733,-151.0,0.00027123,7]
[341680042,1731088250742,-151.0,0.00027123,7]
[341680043,1731088250751,-151.0,0.00027123,7]
[341680044,1731088250761,-2301.4,0.00027123,2]
[341680045,1731088250770,-500.0,0.00027123,2]
[341680046,1731088250783,-151.0,0.00027123,7]
[341680047,1731088250794,-500.0,0.00027123,2]
[341680048,1731088250804,-7917.78,0.000272,14]
[341680049,1731088250816,-7590.29,0.000272,14]
[341680050,1731088250826,-151.0,0.000272,7]
[341680051,1731088250836,-151.0,0.000272,7]
[341680052,1731088250846,-661.3782476,0.00027297,2]
[341680053,1731088250856,-342.0,0.00027386,2]
[341680054,1731088250869,-151.0,0.00027397,7]
[341680055,1731088250879,-596.23,0.00027397,2]
[341680056,1731088250890,-151.961016,0.00027397,7]
[341680057,1731088250900,-159.726175,0.00027397,7]
[341680058,1731088250910,-159.726175,0.00027397,7]
[341680059,1731088250920,-515.035298,0.00027397,7]
[341680060,1731088250930,-151.0,0.00027397,7]
[341680061,1731088250939,-515.035298,0.00027397,7]
[341680062,1731088250949,-1000.0,0.00027397,2]
[341680063,1731088250959,-574.52,0.00027397,2]
[341680064,1731088250968,-4040.74,0.00027397,2]
[341680065,1731088250982,-782.26,0.00027397,2]
[341680066,1731088250992,-665.6,0.00027397,2]
[341680067,1731088251001,-663.22,0.00027397,2]
[341680068,1731088251011,-5917.24,0.00027397,2]
[341680069,1731088251021,-2301.4,0.00027397,2]
[341680070,1731088251030,-584.49,0.00027397,2]
[341680071,1731088251040,-500.0,0.00027397,2]
[341680072,1731088251049,-500.0,0.00027397,2]
[341680073,1731088251058,-500.0,0.00027397,2]
[341680074,1731088251067,-500.0,0.00027397,2]
[341680075,1731088251077,-500.0,0.00027397,2]
[341680076,1731088251087,-500.0,0.00027397,2]
[341680077,1731088251096,-500.0,0.00027397,2]
[341680078,1731088251105,-500.0,0.00027397,2]
[341680079,1731088251114,-500.0,0.00027397,2]
[341680080,1731088251123,-152.07388208,0.00027397,2]
[341680081,1731088251132,-500.0,0.00027397,2]
[341680082,1731088251141,-500.0,0.00027397,2]
[341680083,1731088251151,-344.2133457,0.00027397,2]
[341680084,1731088251160,-151.0,0.00027397,2]
[341680085,1731088251169,-151.0,0.00027397,2]
[341680086,1731088251180,-178.464644,0.00027397,2]
[341680087,1731088251189,-297.97735774,0.00027397,2]
[341680088,1731088251198,-447.48,0.000274,14]
[341680089,1731088251208,-342.0,0.00027616,2]
[341680090,1731088251217,-172.320713,0.00027641,2]
[341680091,1731088251228,-596.23,0.00027671,2]
[341680092,1731088251237,-4040.74,0.00027671,2]
[341680093,1731088251245,-782.26,0.00027671,2]
[341680094,1731088251254,-665.6,0.00027671,2]
[341680095,1731088251263,-663.22,0.00027671,2]
[341680096,1731088251273,-5917.24,0.00027671,2]
[341680097,1731088251282,-151.0,0.00027671,7]
[341680098,1731088251291,-151.0,0.00027671,7]
[341680099,1731088251302,-2301.4,0.00027671,2]
[341680100,1731088251311,-471.09647,0.00027671,7]
[341680101,1731088251321,-471.09647,0.00027671,7]
[341680102,1731088251330,-520.0,0.00027671,2]
[341680103,1731088251340,-366.77,0.000277,14]
[341680104,1731088251349,-1971.58,0.000277,30]
[341680105,1731088251359,-151.0,0.000277,7]
[341680106,1731088251368,-151.0,0.000277,7]
[341680107,1731088251378,-394.313854,0.000277,7]
[341680108,1731088251387,-394.313854,0.000277,7]
[341680109,1731088251395,-274.229618,0.000277,7]
[341680110,1731088251405,-274.229618,0.000277,7]
[341680111,1731088251415,-151.0,0.000277,7]
[341680112,1731088251424,-500.0,0.00027738,5]
[341680113,1731088251433,-1000.0,0.00027738,5]
[341680114,1731088251442,-1000.0,0.00027738,5]
[341680115,1731088251450,-228.287,0.00027753,2]
[341680116,1731088251461,-529.0,0.00027753,2]
[341680117,1731088251472,-1132.0,0.00027753,2]
[341680118,1731088251481,-2392.0,0.00027753,2]
[341680119,1731088251490,-269.906,0.00027753,2]
[341680120,1731088251499,-161.688,0.00027753,2]
[341680121,1731088251509,-1000.0,0.00027759,5]
[341680122,1731088251518,-661.37824758,0.00027791,2]
[341680123,1731088251527,-150.112233,0.000278,11]
[341680124,1731088251536,-157.397,0.000278,120]
[341680125,1731088251546,-465.04457977,0.00027837,2]
[341680126,1731088251555,-151.0,0.00027945,7]
[341680127,1731088251564,-402.942083,0.00027945,7]
[341680128,1731088251573,-596.23,0.00027945,2]
[341680129,1731088251582,-151.0,0.00027945,7]
[341680130,1731088251668,-151.0,0.00027945,7]
[341680131,1731088251678,-4040.74,0.00027945,2]
[341680132,1731088251687,-782.26,0.00027945,2]
[341680133,1731088251697,-265.879557,0.00027945,7]
[341680134,1731088251706,-265.879557,0.00027945,7]
[341680135,1731088251715,-665.6,0.00027945,2]
[341680136,1731088251726,-151.0,0.00027945,7]
[341680137,1731088251736,-663.22,0.00027945,2]
[341680138,1731088251746,-5917.24,0.00027945,2]
[341680139,1731088251755,-151.0,0.00027945,7]
[341680140,1731088251763,-151.0,0.00027945,7]
[341680141,1731088251773,-151.0,0.00027945,7]
[341680142,1731088251788,-151.0,0.00027945,7]
[341680143,1731088251798,-2301.4,0.00027945,2]
[341680144,1731088251807,-151.0,0.00027945,7]
[341680145,1731088251816,-1000.0,0.00028,28]
[341680146,1731088251826,-8427.59641876,0.00028,2]
[341680147,1731088251836,-150.112233,0.000281,11]
[341680148,1731088251845,-823.0,0.0002813,2]
[341680149,1731088251855,-186.909413,0.00028219,7]
[341680150,1731088251864,-596.29,0.00028219,2]
[341680151,1731088251873,-186.909413,0.00028219,7]
[341680152,1731088251883,-4040.94,0.00028219,2]
[341680153,1731088251893,-782.32000001,0.00028219,2]
[341680154,1731088251902,-665.65,0.00028219,2]
[341680155,1731088251911,-663.25,0.00028219,2]
[341680156,1731088251920,-5917.41,0.00028219,2]
[341680157,1731088251929,-2301.52,0.00028219,2]
[341680158,1731088251938,-661.37824758,0.00028285,2]
[341680159,1731088251948,-150.112233,0.000284,14]
[341680160,1731088251958,-574.1920666,0.00028406,7]
[341680161,1731088251968,-157.582,0.0002844,30]
[341680162,1731088251979,-7917.78,0.000285,30]
[341680163,1731088251988,-7590.29,0.000285,14]
[341680164,1731088251998,-276.469466,0.000285,7]
[341680165,1731088252007,-151.0,0.000285,7]
[341680166,1731088252016,-151.0,0.000285,7]
[341680167,1731088252025,-447.48,0.000287,14]
[341680168,1731088252035,-500.0,0.0002871,2]
[341680169,1731088252045,-151.0,0.00028721,7]
[341680170,1731088252055,-175.28290813,0.00028755,10]
[341680171,1731088252065,-238264.34614774,0.00028756,2]
[341680172,1731088252075,-2380.29664844,0.00028756,2]
[341680173,1731088252086,-151.0,0.00028756,7]
[341680174,1731088252096,-264.475776,0.00028756,7]
[341680175,1731088252107,-151.0,0.00028756,7]
[341680176,1731088252117,-195.224923,0.00028756,7]
[341680177,1731088252127,-195.224923,0.00028756,7]
[341680178,1731088252137,-222.315844,0.00028756,7]
[341680179,1731088252147,-402.942083,0.00028756,7]
[341680180,1731088252157,-186.909413,0.00028756,7]
[341680181,1731088252166,-186.909413,0.00028756,7]
[341680182,1731088252176,-151.0,0.00028756,7]
[341680183,1731088252186,-151.0,0.00028756,7]
[341680184,1731088252196,-326.084264,0.00028756,7]
[341680185,1731088252205,-151.0,0.00028756,7]
[341680186,1731088252214,-151.0,0.00028756,7]
[341680187,1731088252225,-159.726175,0.00028756,7]
[341680188,1731088252234,-159.726175,0.00028756,7]
[341680189,1731088252243,-515.035298,0.00028756,7]
[341680190,1731088252253,-394.313854,0.00028756,7]
[341680191,1731088252263,-515.035298,0.00028756,7]
[341680192,1731088252272,-394.313854,0.00028756,7]
[341680193,1731088252281,-151.0,0.00028756,7]
[341680194,1731088252292,-274.229618,0.00028756,7]
[341680195,1731088252301,-151.0,0.00028756,7]
[341680196,1731088252310,-274.229618,0.00028756,7]
[341680197,1731088252319,-151.0,0.00028756,7]
[341680198,1731088252329,-265.879557,0.00028756,7]
[341680199,1731088252338,-265.879557,0.00028756,7]
[341680200,1731088252348,-151.0,0.00028756,7]
[341680201,1731088252358,-151.0,0.00028756,7]
[341680202,1731088252368,-151.0,0.00028756,7]
[341680203,1731088252377,-151.0,0.00028756,7]
[341680204,1731088252386,-151.0,0.00028756,7]
[341680205,1731088252395,-151.0,0.00028756,7]
[341680206,1731088252405,-151.0,0.00028756,7]
[341680207,1731088252415,-151.0,0.00028756,7]
[341680208,1731088252425,-471.09647,0.00028756,7]
[341680209,1731088252434,-471.09647,0.00028756,7]
[341680210,1731088252444,-500.0,0.00028773,5]
[341680211,1731088252455,-67914.23900385,0.00028773,2]
[341680212,1731088252467,-661.37824758,0.0002878,2]
[341680213,1731088252477,-366.77,0.000288,14]
[341680214,1731088252487,-1971.58,0.000288,30]
[341680215,1731088252496,-200.0,0.0002899,21]
[341680216,1731088252505,-342.0,0.00028997,2]
[341680217,1731088252514,-300.97649722,0.00028998,2]
[341680218,1731088252523,-12184.26065281,0.00028998,2]
[341680219,1731088252532,-402.942083,0.00028998,7]
[341680220,1731088252542,-151.0,0.00028998,7]
[341680221,1731088252551,-151.0,0.00028998,7]
[341680222,1731088252560,-326.084264,0.00028998,7]
[341680223,1731088252569,-151.0,0.00028998,7]
[341680224,1731088252579,-151.0,0.00028998,7]
[341680225,1731088252588,-159.726175,0.00028998,7]
[341680226,1731088252597,-159.726175,0.00028998,7]
[341680227,1731088252607,-515.035298,0.00028998,7]
[341680228,1731088252617,-394.313854,0.00028998,7]
[341680229,1731088252626,-515.035298,0.00028998,7]
[341680230,1731088252636,-394.313854,0.00028998,7]
[341680231,1731088252645,-151.0,0.00028998,7]
[341680232,1731088252655,-274.229618,0.00028998,7]
[341680233,1731088252664,-151.0,0.00028998,7]
[341680234,1731088252673,-274.229618,0.00028998,7]
[341680235,1731088252683,-151.0,0.00028998,7]
[341680236,1731088252692,-265.879557,0.00028998,7]
[341680237,1731088252701,-265.879557,0.00028998,7]
[341680238,1731088252710,-151.0,0.00028998,7]
[341680239,1731088252720,-151.0,0.00028998,7]
[341680240,1731088252730,-151.0,0.00028998,7]
[341680241,1731088252740,-151.0,0.00028998,7]
[341680242,1731088252749,-151.0,0.00028998,7]
[341680243,1731088252759,-151.0,0.00028998,7]
[341680244,1731088252768,-151.0,0.00028998,7]
[341680245,1731088252780,-1000.0,0.00028998,28]
[341680246,1731088252789,-1000.0,0.00028998,28]
[341680247,1731088252799,-1000.0,0.00028998,28]
[341680248,1731088252808,-1000.0,0.00028998,28]
[341680249,1731088252818,-1000.0,0.00028998,28]
[341680250,1731088252829,-1000.0,0.00028998,28]
[341680251,1731088252839,-1000.0,0.00028998,28]
[341680252,1731088252848,-1000.0,0.00028998,28]
[341680253,1731088252859,-1000.0,0.00028998,28]
[341680254,1731088252868,-1000.0,0.00028998,28]
[341680255,1731088252878,-1000.0,0.00028998,28]
[341680256,1731088252887,-1000.0,0.00028998,28]
[341680257,1731088252897,-1000.0,0.00028998,28]
[341680258,1731088252907,-1000.0,0.00028998,28]
[341680259,1731088252916,-1000.0,0.00028998,28]
[341680260,1731088252926,-1000.0,0.00028998,28]
[341680261,1731088252935,-1000.0,0.00028998,28]
[341680262,1731088252945,-1000.0,0.00028998,28]
[341680263,1731088252955,-1000.0,0.00028998,28]
[341680264,1731088252964,-1000.0,0.00028998,28]
[341680265,1731088252975,-1000.0,0.00028998,28]
[341680266,1731088252984,-1000.0,0.00028998,28]
[341680267,1731088252994,-1000.0,0.00028998,28]
[341680268,1731088253003,-1000.0,0.00028998,28]
[341680269,1731088253013,-1000.0,0.00028998,28]
[341680270,1731088253021,-1000.0,0.00028998,28]
[341680271,1731088253031,-1000.0,0.00028998,28]
[341680272,1731088253040,-1000.0,0.00028998,28]
[341680273,1731088253049,-1000.0,0.00028998,28]
[341680274,1731088253058,-1000.0,0.00028998,28]
[341680275,1731088253068,-1000.0,0.00028998,28]
[341680276,1731088253077,-1000.0,0.00028998,28]
[341680277,1731088253087,-1000.0,0.00028998,28]
[341680278,1731088253096,-1000.0,0.00028998,28]
[341680279,1731088253105,-1000.0,0.00028998,28]
[341680280,1731088253115,-1000.0,0.00028998,28]
[341680281,1731088253124,-1000.0,0.00028998,28]
[341680282,1731088253133,-1000.0,0.00028998,28]
[341680283,1731088253142,-1000.0,0.00028998,28]
[341680284,1731088253152,-922.397241,0.00028998,28]
[341680285,1731088253161,-151.0,0.00028998,7]
[341680286,1731088253170,-471.09647,0.00028998,7]
[341680287,1731088253179,-471.09647,0.00028998,7]
[341680288,1731088253188,-151.0,0.00028999,7]
[341680289,1731088253197,-195.224923,0.00028999,7]
[341680290,1731088253206,-195.224923,0.00028999,7]
[341680291,1731088253216,-31676.0,0.00029,2]
[341680292,1731088253227,-151.0,0.00029,7]
[341680293,1731088253236,-152.458569,0.00029,7]
[341680294,1731088253246,-1000.0,0.00029,29]
[341680295,1731088253256,-151.0,0.00029,7]
[341680296,1731088253265,-186.909413,0.00029,7]
[341680297,1731088253274,-186.909413,0.00029,7]
[341680298,1731088253284,-1333.0,0.00029041,120]
[341680299,1731088253293,-1094356.5576661,0.00029047,30]
[341680300,1731088253414,-88204.73842021,0.00029047,30]
[341680301,1731088253425,-3572.49951848,0.00029047,30]
[341680302,1731088253588,-500.0,0.00022464,2]
[341680303,1731088253597,-500.0,0.00022464,2]
[341680304,1731088253606,-103.58139657,0.00022464,2]
[341680305,1731088253619,-300.34124963,0.00022464,2]
[341680306,1731088253628,-252.69,0.00027753,2]
[341680307,1731088253638,-48255.87485812,0.00029047,30]
[341680308,1731088253647,-151.0,0.00029047,7]
[341680309,1731088253656,-151.0,0.00029047,7]
[341680310,1731088253665,-195.224923,0.00029047,7]
[341680311,1731088253675,-195.224923,0.00029047,7]
[341680312,1731088253684,-402.942083,0.00029047,7]
[341680313,1731088253694,-186.909413,0.00029047,7]
[341680314,1731088253703,-186.909413,0.00029047,7]
[341680315,1731088253712,-151.0,0.00029047,7]
[341680316,1731088253722,-151.0,0.00029047,7]
[341680317,1731088253731,-326.084264,0.00029047,7]
[341680318,1731088253740,-151.0,0.00029047,7]
[341680319,1731088253750,-151.0,0.00029047,7]
[341680320,1731088253759,-159.726175,0.00029047,7]
[341680321,1731088253769,-159.726175,0.00029047,7]
[341680322,1731088253780,-515.035298,0.00029047,7]
[341680323,1731088253789,-394.313854,0.00029047,7]
[341680324,1731088253800,-515.035298,0.00029047,7]
[341680325,1731088253809,-394.313854,0.00029047,7]
[341680326,1731088253820,-274.229618,0.00029047,7]
[341680327,1731088253829,-151.0,0.00029047,7]
[341680328,1731088253839,-274.229618,0.00029047,7]
[341680329,1731088253848,-151.0,0.00029047,7]
[341680330,1731088253859,-265.879557,0.00029047,7]
[341680331,1731088253869,-265.879557,0.00029047,7]
[341680332,1731088253878,-151.0,0.00029047,7]
[341680333,1731088253888,-151.0,0.00029047,7]
[341680334,1731088253898,-289.891046,0.00029047,7]
[341680335,1731088253907,-151.0,0.00029047,7]
[341680336,1731088253918,-151.0,0.00029047,7]
[341680337,1731088253927,-151.0,0.00029047,7]
[341680338,1731088253937,-151.0,0.00029047,7]
[341680339,1731088253947,-151.0,0.00029047,7]
[341680340,1731088253956,-471.09647,0.00029047,7]
[341680341,1731088253966,-471.09647,0.00029047,7]
[341680342,1731088253978,-1315.33,0.000291,2]
[341680343,1731088253987,-356.0,0.0002917,2]
[341680344,1731088253996,-150.8792,0.000292,2]
[341680345,1731088254006,-661.37824758,0.00029274,2]
[341680346,1731088254015,-12261.72619674,0.00029403,2]
[341680347,1731088254025,-600.0,0.00029589,4]
[341680348,1731088254034,-1000.0,0.00029669,2]
[341680349,1731088254043,-153671.94619876,0.000297,2]
[341680350,1731088254054,-151.0,0.000297,7]
[341680351,1731088254063,-151.0,0.000297,7]
[341680352,1731088254073,-195.224923,0.000297,7]
[341680353,1731088254082,-195.224923,0.000297,7]
[341680354,1731088254092,-402.942083,0.000297,7]
[341680355,1731088254101,-402.942083,0.000297,7]
[341680356,1731088254110,-186.909413,0.000297,7]
[341680357,1731088254120,-186.909413,0.000297,7]
[341680358,1731088254130,-151.0,0.000297,7]
[341680359,1731088254140,-151.0,0.000297,7]
[341680360,1731088254149,-326.084257,0.000297,7]
[341680361,1731088254158,-151.0,0.000297,7]
[341680362,1731088254167,-151.0,0.000297,7]
[341680363,1731088254177,-159.726175,0.000297,7]
[341680364,1731088254186,-159.726182,0.000297,7]
[341680365,1731088254196,-515.035298,0.000297,7]
[341680366,1731088254205,-394.313854,0.000297,7]
[341680367,1731088254214,-515.035308,0.000297,7]
[341680368,1731088254226,-394.313849,0.000297,7]
[341680369,1731088254236,-151.0,0.000297,6]
[341680370,1731088254245,-151.0,0.000297,6]
[341680371,1731088254254,-274.229618,0.000297,7]
[341680372,1731088254264,-266.681265,0.000297,7]
[341680373,1731088254273,-274.229615,0.000297,7]
[341680374,1731088254283,-151.0,0.000297,7]
[341680375,1731088254292,-265.879557,0.000297,7]
[341680376,1731088254301,-265.879557,0.000297,7]
[341680377,1731088254311,-151.0,0.000297,7]
[341680378,1731088254320,-151.0,0.000297,7]
[341680379,1731088254329,-151.0,0.000297,7]
[341680380,1731088254338,-151.0,0.000297,7]
[341680381,1731088254347,-151.0,0.000297,7]
[341680382,1731088254356,-151.0,0.000297,7]
[341680383,1731088254365,-151.0,0.000297,7]
[341680384,1731088254375,-471.09647,0.000297,7]
[341680385,1731088254384,-471.09647,0.000297,7]
[341680386,1731088254393,-1000.0,0.00029766,2]
[341680387,1731088254403,-661.37824758,0.00029768,2]
[341680388,1731088254413,-5000.0,0.00029799,30]
[341680389,1731088254422,-267.0,0.000298,2]
[341680390,1731088254431,-7917.78,0.000298,30]
[341680391,1731088254441,-7590.29,0.000298,14]
[341680392,1731088254450,-600.0,0.00029843,2]
[341680393,1731088254459,-1926.60549982,0.0003,4]
[341680394,1731088254468,-1142.74157816,0.0003,2]
[341680395,1731088254479,-3545.6739961,0.0003,2]
[341680396,1731088254489,-7107.51068186,0.0003,30]
[341680397,1731088254499,-5000.0,0.0003,2]
[341680398,1731088254508,-191.38,0.0003,2]
[341680399,1731088254517,-529.02,0.0003,5]
[341680400,1731088254526,-6722.44434072,0.0003,2]
[341680401,1731088254535,-252.15616305,0.0003,120]
[341680402,1731088254544,-84681.04827475,0.0003,2]
[341680403,1731088256337,173.716007,0.00013973,2]
[341680407,1731088378081,160.3,0.00020843,2]
[341680408,1731088439741,694.44444444,0.00020843,2]
[341680410,1731089052197,694.44444444,0.00020843,2]
[341680412,1731089134421,173.716007,0.00013973,2]
[341680460,1731089432701,-300.0,0.00020998,2]
[341680462,1731089432711,-300.0,0.00020998,2]
[341680464,1731089432720,-285.0000047,0.00020999,2]
[341680466,1731089432729,-2718.9199953,0.00020999,2]
[341680468,1731089432741,-4705.68574889,0.00020999,2]
[341680544,1731089438740,-17475.39425581,0.00020999,2]
[341680545,1731089438750,-258.74360085,0.00021173,2]
[341680546,1731089438762,-694.44444444,0.00021701,2]
[341680547,1731089438771,-552.80330519,0.00021917,2]
[341680548,1731089438782,-500.0,0.00021917,2]
[341680549,1731089438792,-500.0,0.00021917,2]
[341680550,1731089438802,-500.0,0.00021917,2]
[341680551,1731089438811,-500.0,0.00021917,2]
[341680552,1731089438822,-500.0,0.00021917,2]
[341680553,1731089438831,-500.0,0.00021917,2]
[341680554,1731089438841,-500.0,0.00021917,2]
[341680555,1731089438851,-328.71817147,0.00021917,2]
[341680556,1731089438860,-500.0,0.00021917,2]
[341680557,1731089438869,-500.0,0.00021917,2]
[341680558,1731089438878,-500.0,0.00021917,2]
[341680559,1731089438887,-500.0,0.00021917,2]
[341680560,1731089438897,-500.0,0.00021917,2]
[341680561,1731089438906,-180.87726891,0.00021917,2]
[341680562,1731089438916,-500.0,0.00021917,2]
[341680563,1731089438925,-500.0,0.00021917,2]
[341680564,1731089438935,-169.155966,0.00021917,2]
[341680565,1731089438944,-500.0,0.00021917,2]
[341680566,1731089438953,-500.0,0.00021917,2]
[341680567,1731089438962,-500.0,0.00021917,2]
[341680568,1731089438972,-500.0,0.00021917,2]
[341680569,1731089438982,-500.0,0.00021917,2]
[341680570,1731089438991,-500.0,0.00021917,2]
[341680571,1731089439001,-500.0,0.00021917,2]
[341680572,1731089439011,-470.44931044,0.00021917,2]
[341680573,1731089439020,-500.0,0.00021917,2]
[341680574,1731089439030,-500.0,0.00021917,2]
[341680575,1731089439039,-215.49538655,0.00021917,2]
[341680576,1731089439049,-500.0,0.00021917,2]
[341680577,1731089439058,-500.0,0.00021917,2]
[341680578,1731089439068,-500.0,0.00021917,2]
[341680579,1731089439078,-500.0,0.00021917,2]
[341680580,1731089439088,-500.0,0.00021917,2]
[341680581,1731089439098,-500.0,0.00021917,2]
[341680582,1731089439107,-174.96499581,0.00021917,2]
[341680583,1731089439117,-503.63557261,0.00021917,2]
[341680584,1731089439129,-500.0,0.00021917,2]
[341680585,1731089439140,-500.0,0.00021917,2]
[341680586,1731089439149,-500.0,0.00021917,2]
[341680587,1731089439159,-357.35744305,0.00021917,2]
[341680588,1731089439170,-500.0,0.00021917,2]
[341680589,1731089439179,-500.0,0.00021917,2]
[341680590,1731089439189,-500.0,0.00021917,2]
[341680591,1731089439200,-500.0,0.00021917,2]
[341680592,1731089439209,-500.0,0.00021917,2]
[341680593,1731089439219,-500.0,0.00021917,2]
[341680594,1731089439228,-500.0,0.00021917,2]
[341680595,1731089439238,-500.0,0.00021917,2]
[341680596,1731089439248,-500.0,0.00021917,2]
[341680597,1731089439258,-500.0,0.00021917,2]
[341680598,1731089439268,-500.0,0.00021917,2]